[Event "Late-Titled-Tuesday-Blitz-October-17-2023"]
[Site "Chess.com"]
[Date "2023.10.17"]
[Round "7"]
[White "German_Bazeev"]
[Black "karinachess1"]
[Result "1/2-1/2"]
[WhiteElo "2792"]
[BlackElo "2613"]
[TimeControl "180+1"]
[EndTime "15:17:35 PDT"]
[Termination "Game drawn by repetition"]

1. d4 {[%clk 0:02:28.8]} 1... Nf6 {[%clk 0:02:59.4]} 2. Bg5 {[%clk 0:02:26.5]}
2... d5 {[%clk 0:02:58.7]} 3. Bxf6 {[%clk 0:02:25.9]} 3... exf6 {[%clk
0:02:58.3]} 4. Nf3 {[%clk 0:02:26.8]} 4... c6 {[%clk 0:02:51]} 5. e3 {[%clk
0:02:26.8]} 5... Bd6 {[%clk 0:02:51.6]} 6. c4 {[%clk 0:02:27.3]} 6... O-O {[%clk
0:02:52.2]} 7. cxd5 {[%clk 0:02:26.5]} 7... cxd5 {[%clk 0:02:53.1]} 8. Nc3
{[%clk 0:02:27.1]} 8... Be6 {[%clk 0:02:48.6]} 9. g3 {[%clk 0:02:23.2]} 9... Nc6
{[%clk 0:02:44.6]} 10. Bg2 {[%clk 0:02:18.1]} 10... Qb6 {[%clk 0:02:34.7]} 11.
Qb3 {[%clk 0:02:15.1]} 11... Qxb3 {[%clk 0:02:32.4]} 12. axb3 {[%clk 0:02:16]}
12... Nb4 {[%clk 0:02:32.8]} 13. Kd2 {[%clk 0:02:12.6]} 13... a6 {[%clk
0:02:27.8]} 14. Ne1 {[%clk 0:02:10.4]} 14... Rfc8 {[%clk 0:02:20.6]} 15. Nd3
{[%clk 0:02:09.9]} 15... Rc6 {[%clk 0:02:04.7]} 16. Rhc1 {[%clk 0:02:05.4]}
16... Rac8 {[%clk 0:02:02.8]} 17. Nxb4 {[%clk 0:01:29.6]} 17... Bxb4 {[%clk
0:02:02.3]} 18. h3 {[%clk 0:01:30.2]} 18... Kf8 {[%clk 0:01:47]} 19. g4 {[%clk
0:01:18.3]} 19... Ke7 {[%clk 0:01:36.9]} 20. Kd3 {[%clk 0:01:08]} 20... Kd6
{[%clk 0:01:29.3]} 21. Ne2 {[%clk 0:01:01.7]} 21... Rxc1 {[%clk 0:01:20.2]} 22.
Rxc1 {[%clk 0:01:02.6]} 22... Rxc1 {[%clk 0:01:20.4]} 23. Nxc1 {[%clk
0:01:03.5]} 23... Bd7 {[%clk 0:01:20.5]} 24. Kc2 {[%clk 0:00:47.9]} 24... Bb5
{[%clk 0:01:18.3]} 25. Na2 {[%clk 0:00:43.3]} 25... Be1 {[%clk 0:01:14.7]} 26.
f4 {[%clk 0:00:43.8]} 26... h6 {[%clk 0:00:48.9]} 27. Nc3 {[%clk 0:00:43.5]}
27... Bc6 {[%clk 0:00:42.6]} 28. Kd1 {[%clk 0:00:39.7]} 28... Bxc3 {[%clk
0:00:29.2]} 29. bxc3 {[%clk 0:00:40.6]} 29... g5 {[%clk 0:00:28.5]} 30. Kd2
{[%clk 0:00:31.5]} 30... a5 {[%clk 0:00:27.7]} 31. Bf1 {[%clk 0:00:27]} 31... b5
{[%clk 0:00:25.8]} 32. Kc2 {[%clk 0:00:19.3]} 32... Kc7 {[%clk 0:00:24.1]} 33.
Kb2 {[%clk 0:00:11.8]} 33... Kb6 {[%clk 0:00:22.5]} 34. Ka3 {[%clk 0:00:12.3]}
34... Bd7 {[%clk 0:00:19.9]} 35. Bg2 {[%clk 0:00:10.7]} 35... Bc6 {[%clk
0:00:20]} 36. Bf3 {[%clk 0:00:11.2]} 36... Bb7 {[%clk 0:00:20]} 37. Be2 {[%clk
0:00:11.4]} 37... Bc6 {[%clk 0:00:20.1]} 38. Bd1 {[%clk 0:00:11.7]} 38... Bb7
{[%clk 0:00:20.3]} 39. Bc2 {[%clk 0:00:12.3]} 39... Bc6 {[%clk 0:00:20.8]} 40.
Bd3 {[%clk 0:00:12.9]} 40... Bd7 {[%clk 0:00:19]} 41. Bb1 {[%clk 0:00:11.6]}
41... Bc6 {[%clk 0:00:18.6]} 42. Ba2 {[%clk 0:00:12]} 42... Bb7 {[%clk
0:00:17.4]} 43. Kb2 {[%clk 0:00:12.6]} 43... Bc6 {[%clk 0:00:15.9]} 44. Kc1
{[%clk 0:00:12.9]} 44... Bb7 {[%clk 0:00:15.2]} 45. Kd2 {[%clk 0:00:13.6]} 45...
Kc6 {[%clk 0:00:15.6]} 46. Bb1 {[%clk 0:00:13.9]} 46... Kd6 {[%clk 0:00:15.2]}
47. Bh7 {[%clk 0:00:14.5]} 47... Bc6 {[%clk 0:00:15.3]} 48. Bg8 {[%clk
0:00:14.1]} 48... Ke7 {[%clk 0:00:15.6]} 49. Bh7 {[%clk 0:00:14.7]} 49... Kd6
{[%clk 0:00:15.7]} 50. Kc2 {[%clk 0:00:14.5]} 50... Ke7 {[%clk 0:00:15.5]} 51.
Kb2 {[%clk 0:00:15.1]} 51... Kd6 {[%clk 0:00:16.1]} 52. Ka3 {[%clk 0:00:15.7]}
52... Bd7 {[%clk 0:00:16.5]} 53. Bd3 {[%clk 0:00:15]} 53... Bc6 {[%clk
0:00:16.7]} 54. Bc2 {[%clk 0:00:15.5]} 54... Bd7 {[%clk 0:00:16.8]} 55. Bb1
{[%clk 0:00:16]} 55... Bc6 {[%clk 0:00:17.1]} 56. Bc2 {[%clk 0:00:16.7]} 56...
Bd7 {[%clk 0:00:17.5]} 57. Bd1 {[%clk 0:00:17.4]} 57... Bc6 {[%clk 0:00:18]} 58.
Be2 {[%clk 0:00:18]} 58... Bd7 {[%clk 0:00:18.4]} 59. Bf1 {[%clk 0:00:18.7]}
59... Bc6 {[%clk 0:00:18.8]} 60. Bg2 {[%clk 0:00:19.3]} 60... Bd7 {[%clk
0:00:19.2]} 61. Bf3 {[%clk 0:00:19.9]} 61... Bc6 {[%clk 0:00:18]} 62. Kb2 {[%clk
0:00:18]} 62... Bd7 {[%clk 0:00:18.2]} 63. Be2 {[%clk 0:00:18.4]} 63... Bc6
{[%clk 0:00:18.4]} 64. Kc2 {[%clk 0:00:17.2]} 64... Bd7 {[%clk 0:00:18.5]} 65.
Kd2 {[%clk 0:00:17.8]} 65... Bc6 {[%clk 0:00:18.8]} 66. Bd3 {[%clk 0:00:18.2]}
66... Bd7 {[%clk 0:00:18.9]} 67. Bb1 {[%clk 0:00:18.7]} 67... Bc6 {[%clk
0:00:19.1]} 68. Ba2 {[%clk 0:00:18.6]} 68... Bd7 {[%clk 0:00:19.1]} 69. Ke1
{[%clk 0:00:19.3]} 69... Bc6 {[%clk 0:00:19.2]} 70. Kf2 {[%clk 0:00:20]} 70...
Bd7 {[%clk 0:00:19]} 71. Kg3 {[%clk 0:00:20.6]} 71... Bc6 {[%clk 0:00:16.3]} 72.
h4 {[%clk 0:00:21]} 72... Bd7 {[%clk 0:00:16.5]} 73. hxg5 {[%clk 0:00:20]} 73...
fxg5 {[%clk 0:00:16.2]} 74. fxg5 {[%clk 0:00:17.3]} 74... hxg5 {[%clk
0:00:17.1]} 75. Kf3 {[%clk 0:00:17.8]} 75... f6 {[%clk 0:00:17.4]} 76. Bb1
{[%clk 0:00:17.7]} 76... Bc6 {[%clk 0:00:17.4]} 77. Bd3 {[%clk 0:00:18.3]} 77...
Bd7 {[%clk 0:00:17.6]} 78. Be2 {[%clk 0:00:18.5]} 78... Bc6 {[%clk 0:00:17.8]}
79. Bd1 {[%clk 0:00:18.7]} 79... a4 {[%clk 0:00:16.8]} 80. b4 {[%clk 0:00:19.1]}
80... Bd7 {[%clk 0:00:16.8]} 81. Bc2 {[%clk 0:00:19.5]} 81... Bc6 {[%clk
0:00:17.3]} 82. Bb1 {[%clk 0:00:19.7]} 82... Bd7 {[%clk 0:00:17.4]} 83. Bc2
{[%clk 0:00:20.3]} 83... Bc6 {[%clk 0:00:17.7]} 84. Bb1 {[%clk 0:00:20.9]} 84...
Bd7 {[%clk 0:00:18.1]} 85. Bc2 {[%clk 0:00:21.5]} 1/2-1/2

[Event "Late-Titled-Tuesday-Blitz-October-17-2023"]
[Site "Chess.com"]
[Date "2023.10.17"]
[Round "7"]
[White "luizzy"]
[Black "BardArtem"]
[Result "0-1"]
[WhiteElo "2568"]
[BlackElo "2764"]
[TimeControl "180+1"]
[EndTime "15:17:37 PDT"]
[Termination "BardArtem won by resignation"]

1. b3 {[%clk 0:03:00.9]} 1... d5 {[%clk 0:02:58.1]} 2. Bb2 {[%clk 0:03:01.1]}
2... Nf6 {[%clk 0:02:57.5]} 3. e3 {[%clk 0:03:01.1]} 3... Bf5 {[%clk 0:02:56.6]}
4. Nf3 {[%clk 0:03:01.3]} 4... e6 {[%clk 0:02:56.4]} 5. d3 {[%clk 0:03:01]} 5...
h6 {[%clk 0:02:56.3]} 6. Nbd2 {[%clk 0:03:00.9]} 6... c6 {[%clk 0:02:54.8]} 7.
Ne5 {[%clk 0:02:54.9]} 7... Nbd7 {[%clk 0:02:52.6]} 8. Ndf3 {[%clk 0:02:52.4]}
8... Be7 {[%clk 0:02:51.4]} 9. h3 {[%clk 0:02:43.2]} 9... O-O {[%clk 0:02:42.5]}
10. g4 {[%clk 0:02:42.3]} 10... Bh7 {[%clk 0:02:41.5]} 11. h4 {[%clk 0:02:38.7]}
11... Nxe5 {[%clk 0:02:37]} 12. Nxe5 {[%clk 0:02:38.4]} 12... Nd7 {[%clk
0:02:36.7]} 13. Nxd7 {[%clk 0:02:36.4]} 13... Qxd7 {[%clk 0:02:36.4]} 14. g5
{[%clk 0:02:37.1]} 14... f6 {[%clk 0:02:25.7]} 15. gxh6 {[%clk 0:02:30.7]} 15...
gxh6 {[%clk 0:02:26.6]} 16. Qh5 {[%clk 0:02:28.7]} 16... Bb4+ {[%clk 0:02:11.4]}
17. Kd1 {[%clk 0:02:13.8]} 17... Qg7 {[%clk 0:01:54.8]} 18. Bh3 {[%clk
0:02:11.9]} 18... Bg6 {[%clk 0:01:44.9]} 19. Bxe6+ {[%clk 0:02:08.1]} 19... Kh8
{[%clk 0:01:43.5]} 20. Qg4 {[%clk 0:02:08.8]} 20... Rae8 {[%clk 0:01:31.8]} 21.
Rg1 {[%clk 0:01:30.2]} 21... Rxe6 {[%clk 0:00:56.2]} 22. Qxg6 {[%clk 0:01:30.3]}
22... Qxg6 {[%clk 0:00:56.4]} 23. Rxg6 {[%clk 0:01:31.2]} 23... Kh7 {[%clk
0:00:52.2]} 24. h5 {[%clk 0:01:31.5]} 24... Bd6 {[%clk 0:00:48.6]} 25. Ke2
{[%clk 0:01:28.6]} 25... Be5 {[%clk 0:00:46.9]} 26. d4 {[%clk 0:01:04.1]} 26...
Bd6 {[%clk 0:00:46.2]} 27. Rag1 {[%clk 0:01:03.9]} 27... Rf7 {[%clk 0:00:34.1]}
28. Kd3 {[%clk 0:00:44.4]} 28... Re4 {[%clk 0:00:31.5]} 29. R1g4 {[%clk
0:00:35.8]} 29... f5 {[%clk 0:00:21.9]} 30. Rg2 {[%clk 0:00:31.1]} 30... Bf8
{[%clk 0:00:18.3]} 31. f4 {[%clk 0:00:22.2]} 31... Bg7 {[%clk 0:00:08.8]} 32. c4
{[%clk 0:00:20.4]} 32... dxc4+ {[%clk 0:00:06.2]} 33. bxc4 {[%clk 0:00:20.9]}
33... Rfe7 {[%clk 0:00:05.4]} 34. Bc1 {[%clk 0:00:20.6]} 34... c5 {[%clk
0:00:05.6]} 35. d5 {[%clk 0:00:20.2]} 35... b5 {[%clk 0:00:05.9]} 36. cxb5
{[%clk 0:00:17.6]} 36... Rd7 {[%clk 0:00:06.1]} 37. d6 {[%clk 0:00:17.7]} 37...
c4+ {[%clk 0:00:05.4]} 38. Kc2 {[%clk 0:00:17.4]} 38... Bh8 {[%clk 0:00:03.3]}
39. Bd2 {[%clk 0:00:14.6]} 39... c3 {[%clk 0:00:03.4]} 40. Bxc3 {[%clk
0:00:13.1]} 40... Rc4 {[%clk 0:00:03.7]} 41. Re6 {[%clk 0:00:03.6]} 41... Rxc3+
{[%clk 0:00:04.2]} 42. Kd2 {[%clk 0:00:04.4]} 42... Rd8 {[%clk 0:00:01.7]} 43.
Rgg6 {[%clk 0:00:04.5]} 43... Rc5 {[%clk 0:00:01.7]} 44. Rxh6+ {[%clk
0:00:03.6]} 44... Kg7 {[%clk 0:00:02.1]} 45. Rhg6+ {[%clk 0:00:04.2]} 45... Kf8
{[%clk 0:00:01.7]} 46. h6 {[%clk 0:00:02.7]} 46... Rd5+ {[%clk 0:00:02.5]} 47.
Ke2 {[%clk 0:00:02.8]} 47... Kf7 {[%clk 0:00:03.4]} 48. h7 {[%clk 0:00:03]}
48... Rxb5 {[%clk 0:00:02.7]} 49. Rh6 {[%clk 0:00:03.1]} 49... Ra5 {[%clk
0:00:02.7]} 50. Re7+ {[%clk 0:00:03.6]} 50... Kf8 {[%clk 0:00:03.2]} 51. Rg6
{[%clk 0:00:03.9]} 51... Rxd6 {[%clk 0:00:03.1]} 52. Rxd6 {[%clk 0:00:01.9]}
52... Kxe7 {[%clk 0:00:04]} 53. Rg6 {[%clk 0:00:01.6]} 53... Rxa2+ {[%clk
0:00:03.4]} 54. Kd3 {[%clk 0:00:01.9]} 54... Rh2 {[%clk 0:00:04.3]} 55. Rg8
{[%clk 0:00:02.7]} 55... Rxh7 {[%clk 0:00:04.6]} 56. Ra8 {[%clk 0:00:03.5]}
56... Kd6 {[%clk 0:00:04.8]} 57. e4 {[%clk 0:00:03.9]} 57... Rh3+ {[%clk
0:00:03.7]} 58. Kc4 {[%clk 0:00:04.3]} 58... fxe4 {[%clk 0:00:04.6]} 59. Rxa7
{[%clk 0:00:04.4]} 59... Ke6 {[%clk 0:00:04.4]} 60. Ra6+ {[%clk 0:00:04.2]}
60... Kf5 {[%clk 0:00:04.7]} 61. Kd5 {[%clk 0:00:04.8]} 61... Rd3+ {[%clk
0:00:04.4]} 62. Kc4 {[%clk 0:00:05.4]} 62... Kxf4 {[%clk 0:00:03.6]} 63. Rh6
{[%clk 0:00:05.5]} 63... Be5 {[%clk 0:00:02.5]} 64. Rh4+ {[%clk 0:00:05.1]}
64... Kf3 {[%clk 0:00:02.8]} 65. Rh3+ {[%clk 0:00:05.4]} 65... Bg3 {[%clk
0:00:03.5]} 66. Rh8 {[%clk 0:00:05.5]} 66... Rd1 {[%clk 0:00:03.8]} 67. Rf8+
{[%clk 0:00:05.8]} 67... Bf4 {[%clk 0:00:04.3]} 68. Kc3 {[%clk 0:00:06.1]} 68...
e3 {[%clk 0:00:04.2]} 69. Rh8 {[%clk 0:00:05.4]} 69... e2 {[%clk 0:00:04.3]} 70.
Rh3+ {[%clk 0:00:05.5]} 70... Bg3 {[%clk 0:00:04.8]} 0-1

[Event "Late-Titled-Tuesday-Blitz-October-17-2023"]
[Site "Chess.com"]
[Date "2023.10.17"]
[Round "7"]
[White "cassoulet"]
[Black "Dhaydon19"]
[Result "0-1"]
[WhiteElo "2782"]
[BlackElo "2564"]
[TimeControl "180+1"]
[EndTime "15:17:46 PDT"]
[Termination "Dhaydon19 won by checkmate"]

1. d4 {[%clk 0:03:00.9]} 1... Nf6 {[%clk 0:02:59.4]} 2. Bg5 {[%clk 0:03:00.8]}
2... b6 {[%clk 0:02:58.7]} 3. Bxf6 {[%clk 0:03:00.2]} 3... exf6 {[%clk
0:02:47.3]} 4. e4 {[%clk 0:02:57.6]} 4... Bb7 {[%clk 0:02:47]} 5. Nc3 {[%clk
0:02:56.9]} 5... g6 {[%clk 0:02:46.6]} 6. Bd3 {[%clk 0:02:56.2]} 6... Bg7 {[%clk
0:02:46]} 7. Nf3 {[%clk 0:02:53.1]} 7... O-O {[%clk 0:02:43.2]} 8. Qd2 {[%clk
0:02:53.1]} 8... c5 {[%clk 0:02:43.3]} 9. dxc5 {[%clk 0:02:49.3]} 9... bxc5
{[%clk 0:02:42.5]} 10. O-O {[%clk 0:02:49.4]} 10... Nc6 {[%clk 0:02:41.4]} 11.
Bc4 {[%clk 0:02:45.4]} 11... Qb6 {[%clk 0:02:37.3]} 12. Nd5 {[%clk 0:02:41.7]}
12... Qd8 {[%clk 0:02:26.1]} 13. Rad1 {[%clk 0:02:38.9]} 13... d6 {[%clk
0:02:23.2]} 14. c3 {[%clk 0:02:36.9]} 14... Ne5 {[%clk 0:02:19.9]} 15. Nxe5
{[%clk 0:02:31.7]} 15... dxe5 {[%clk 0:02:04.9]} 16. Qc2 {[%clk 0:02:25.8]}
16... Rb8 {[%clk 0:01:58.3]} 17. Ne3 {[%clk 0:02:25.2]} 17... Qb6 {[%clk
0:01:53.3]} 18. b3 {[%clk 0:02:24.1]} 18... Bc6 {[%clk 0:01:46.8]} 19. Bd5
{[%clk 0:02:24]} 19... Bb5 {[%clk 0:01:45.9]} 20. c4 {[%clk 0:02:20.7]} 20...
Bd7 {[%clk 0:01:45]} 21. Rd3 {[%clk 0:02:15.5]} 21... Bh6 {[%clk 0:01:44.7]} 22.
Nd1 {[%clk 0:02:12.1]} 22... Kg7 {[%clk 0:01:42.6]} 23. Nc3 {[%clk 0:02:12.1]}
23... f5 {[%clk 0:01:39.5]} 24. Qe2 {[%clk 0:02:00.5]} 24... Rbe8 {[%clk
0:01:35.7]} 25. Rfd1 {[%clk 0:01:59.2]} 25... Re7 {[%clk 0:01:31.4]} 26. exf5
{[%clk 0:01:51.5]} 26... Bxf5 {[%clk 0:01:30.2]} 27. Be4 {[%clk 0:01:51.1]}
27... Be6 {[%clk 0:01:25.6]} 28. Rd6 {[%clk 0:01:49.9]} 28... Qa5 {[%clk
0:01:23.4]} 29. Na4 {[%clk 0:01:45.9]} 29... Bg5 {[%clk 0:01:15.5]} 30. Bd5
{[%clk 0:01:40.3]} 30... Bf5 {[%clk 0:01:09.8]} 31. Be4 {[%clk 0:01:31.1]} 31...
Be6 {[%clk 0:01:08.3]} 32. g3 {[%clk 0:01:28.9]} 32... h5 {[%clk 0:01:06.6]} 33.
Bg2 {[%clk 0:01:28.1]} 33... Bf6 {[%clk 0:00:55.5]} 34. Qe3 {[%clk 0:01:25]}
34... Rc8 {[%clk 0:00:51.1]} 35. Bc6 {[%clk 0:01:22.7]} 35... Rec7 {[%clk
0:00:48.6]} 36. Bd5 {[%clk 0:01:21.2]} 36... Bg4 {[%clk 0:00:46.8]} 37. Bf3
{[%clk 0:01:11.2]} 37... Bf5 {[%clk 0:00:37.9]} 38. h4 {[%clk 0:01:03.5]} 38...
e4 {[%clk 0:00:34.1]} 39. Bg2 {[%clk 0:00:54.1]} 39... Re7 {[%clk 0:00:33.1]}
40. Rxf6 {[%clk 0:00:51]} 40... Kxf6 {[%clk 0:00:31.2]} 41. Qg5+ {[%clk
0:00:51]} 41... Ke6 {[%clk 0:00:31.5]} 42. Rd5 {[%clk 0:00:47]} 42... Rd7 {[%clk
0:00:30.6]} 43. Rxd7 {[%clk 0:00:26.8]} 43... Kxd7 {[%clk 0:00:30.6]} 44. Qf6
{[%clk 0:00:27.1]} 44... Be6 {[%clk 0:00:26.1]} 45. Bxe4 {[%clk 0:00:23.4]}
45... Qe1+ {[%clk 0:00:25.7]} 46. Kh2 {[%clk 0:00:23.3]} 46... Qxe4 {[%clk
0:00:26.3]} 47. Qc3 {[%clk 0:00:22.5]} 47... Qd4 {[%clk 0:00:26.3]} 48. Qc2
{[%clk 0:00:22.6]} 48... Bf5 {[%clk 0:00:25.6]} 49. Qe2 {[%clk 0:00:22.7]} 49...
Re8 {[%clk 0:00:25.1]} 50. Qf3 {[%clk 0:00:23.2]} 50... Be4 {[%clk 0:00:25.3]}
51. Qxf7+ {[%clk 0:00:22.6]} 51... Re7 {[%clk 0:00:26]} 52. Qf4 {[%clk
0:00:22.2]} 52... Bf5 {[%clk 0:00:25.5]} 53. Qf3 {[%clk 0:00:20.9]} 53... Bg4
{[%clk 0:00:25.6]} 54. Qb7+ {[%clk 0:00:20.8]} 54... Ke8 {[%clk 0:00:25.2]} 55.
Qb8+ {[%clk 0:00:18.4]} 55... Kf7 {[%clk 0:00:25.1]} 56. Kg2 {[%clk 0:00:18]}
56... Qe4+ {[%clk 0:00:23.8]} 57. Kh2 {[%clk 0:00:18.5]} 57... Qf3 {[%clk
0:00:23.8]} 58. Qf4+ {[%clk 0:00:15.7]} 58... Qxf4 {[%clk 0:00:23.8]} 59. gxf4
{[%clk 0:00:16.6]} 59... Re2 {[%clk 0:00:24]} 60. Kg3 {[%clk 0:00:17.1]} 60...
Rxa2 {[%clk 0:00:23.8]} 61. Nxc5 {[%clk 0:00:17.5]} 61... Ra3 {[%clk 0:00:24.2]}
62. f3 {[%clk 0:00:17.2]} 62... Bc8 {[%clk 0:00:23.6]} 63. Kf2 {[%clk
0:00:18.1]} 63... a5 {[%clk 0:00:23.5]} 64. Ke2 {[%clk 0:00:17.8]} 64... Ke7
{[%clk 0:00:23.4]} 65. Kd3 {[%clk 0:00:17.7]} 65... Bf5+ {[%clk 0:00:22.7]} 66.
Kd4 {[%clk 0:00:17.8]} 66... Kd6 {[%clk 0:00:22.1]} 67. Nb7+ {[%clk 0:00:18]}
67... Kc6 {[%clk 0:00:21.2]} 68. Nc5 {[%clk 0:00:18.9]} 68... Ra1 {[%clk
0:00:19.5]} 69. Na4 {[%clk 0:00:18.3]} 69... Rxa4 {[%clk 0:00:18.5]} 70. bxa4
{[%clk 0:00:19.2]} 70... Kd6 {[%clk 0:00:18.9]} 71. c5+ {[%clk 0:00:19.6]} 71...
Kc6 {[%clk 0:00:19.5]} 72. Kc4 {[%clk 0:00:20.5]} 72... Bc2 {[%clk 0:00:19.8]}
73. Kd4 {[%clk 0:00:21.4]} 73... Bxa4 {[%clk 0:00:20.4]} 74. f5 {[%clk 0:00:22]}
74... gxf5 {[%clk 0:00:19.6]} 75. Ke5 {[%clk 0:00:22.5]} 75... Bd1 {[%clk
0:00:20.1]} 76. Kxf5 {[%clk 0:00:22.2]} 76... Bxf3 {[%clk 0:00:20.6]} 77. Kg5
{[%clk 0:00:22.6]} 77... Bg4 {[%clk 0:00:21.3]} 78. Kf4 {[%clk 0:00:23.4]} 78...
Kxc5 {[%clk 0:00:21.9]} 79. Ke3 {[%clk 0:00:24.3]} 79... Kb4 {[%clk 0:00:22.6]}
80. Kd2 {[%clk 0:00:25.2]} 80... Kb3 {[%clk 0:00:23.3]} 81. Kc1 {[%clk
0:00:26.1]} 81... a4 {[%clk 0:00:24]} 82. Kb1 {[%clk 0:00:27]} 82... a3 {[%clk
0:00:24.7]} 83. Ka1 {[%clk 0:00:27.9]} 83... Be6 {[%clk 0:00:23.8]} 84. Kb1
{[%clk 0:00:28.8]} 84... Kc3 {[%clk 0:00:23.3]} 85. Ka1 {[%clk 0:00:29.7]} 85...
Kd3 {[%clk 0:00:23.6]} 86. Kb1 {[%clk 0:00:30.3]} 86... Ke3 {[%clk 0:00:24.2]}
87. Kc1 {[%clk 0:00:31.2]} 87... Kf4 {[%clk 0:00:24.8]} 88. Kd2 {[%clk
0:00:31.3]} 88... Kg3 {[%clk 0:00:25.3]} 89. Ke2 {[%clk 0:00:32.2]} 89... a2
{[%clk 0:00:25.8]} 90. Ke3 {[%clk 0:00:32.4]} 90... a1=Q {[%clk 0:00:26]} 91.
Ke4 {[%clk 0:00:33.3]} 91... Kxh4 {[%clk 0:00:24.5]} 92. Ke3 {[%clk 0:00:34.2]}
92... Qc3+ {[%clk 0:00:24.4]} 93. Kf2 {[%clk 0:00:34.4]} 93... Qd2+ {[%clk
0:00:23.6]} 94. Kf1 {[%clk 0:00:34.8]} 94... Bc4+ {[%clk 0:00:23.3]} 95. Kg1
{[%clk 0:00:35.7]} 95... Bd5 {[%clk 0:00:22.5]} 96. Kf1 {[%clk 0:00:35.7]} 96...
Be4 {[%clk 0:00:23.2]} 97. Kg1 {[%clk 0:00:36.2]} 97... Qg2# {[%clk 0:00:23.9]}
0-1

[Event "Late-Titled-Tuesday-Blitz-October-17-2023"]
[Site "Chess.com"]
[Date "2023.10.17"]
[Round "8"]
[White "sorch29"]
[Black "Deeper44"]
[Result "0-1"]
[WhiteElo "2392"]
[BlackElo "2617"]
[TimeControl "180+1"]
[EndTime "15:19:58 PDT"]
[Termination "Deeper44 won by resignation"]

1. d4 {[%clk 0:02:56.5]} 1... Nf6 {[%clk 0:02:58.9]} 2. c4 {[%clk 0:02:56.6]}
2... g6 {[%clk 0:02:59.4]} 3. Nc3 {[%clk 0:02:56.6]} 3... Bg7 {[%clk 0:03:00.1]}
4. e4 {[%clk 0:02:56.8]} 4... d6 {[%clk 0:03:01]} 5. Be2 {[%clk 0:02:57.5]} 5...
O-O {[%clk 0:03:01.6]} 6. Nf3 {[%clk 0:02:58.2]} 6... Na6 {[%clk 0:03:02.1]} 7.
O-O {[%clk 0:02:56.8]} 7... e5 {[%clk 0:03:02.6]} 8. Re1 {[%clk 0:02:53.3]} 8...
exd4 {[%clk 0:03:00.7]} 9. Nxd4 {[%clk 0:02:53.2]} 9... Re8 {[%clk 0:03:01.6]}
10. Bf1 {[%clk 0:02:53.5]} 10... Nc5 {[%clk 0:03:01.9]} 11. f3 {[%clk
0:02:53.4]} 11... c6 {[%clk 0:03:01.2]} 12. Be3 {[%clk 0:02:53.3]} 12... a5
{[%clk 0:02:52.7]} 13. Qd2 {[%clk 0:02:53]} 13... a4 {[%clk 0:02:53.3]} 14. Nc2
{[%clk 0:02:29.6]} 14... Be6 {[%clk 0:02:37.2]} 15. b4 {[%clk 0:02:17.1]} 15...
axb3 {[%clk 0:02:35.1]} 16. axb3 {[%clk 0:02:17.7]} 16... Nxb3 {[%clk
0:02:31.9]} 0-1

[Event "Late-Titled-Tuesday-Blitz-October-17-2023"]
[Site "Chess.com"]
[Date "2023.10.17"]
[Round "8"]
[White "ValeriyGrinev"]
[Black "cassoulet"]
[Result "0-1"]
[WhiteElo "2596"]
[BlackElo "2786"]
[TimeControl "180+1"]
[EndTime "15:20:34 PDT"]
[Termination "cassoulet won by resignation"]

1. e4 {[%clk 0:03:00.9]} 1... c5 {[%clk 0:02:57]} 2. Nf3 {[%clk 0:03:00]} 2...
e6 {[%clk 0:02:57]} 3. Nc3 {[%clk 0:02:58.8]} 3... Nc6 {[%clk 0:02:56.7]} 4. g3
{[%clk 0:02:58.4]} 4... Nf6 {[%clk 0:02:55.5]} 5. Bg2 {[%clk 0:02:59]} 5... Be7
{[%clk 0:02:55.8]} 6. O-O {[%clk 0:02:59.6]} 6... O-O {[%clk 0:02:56]} 7. Re1
{[%clk 0:03:00.2]} 7... d5 {[%clk 0:02:54.6]} 8. exd5 {[%clk 0:03:00]} 8... Nxd5
{[%clk 0:02:55.1]} 9. d4 {[%clk 0:03:00.6]} 9... Nxc3 {[%clk 0:02:51.5]} 10.
bxc3 {[%clk 0:03:00.1]} 10... Bf6 {[%clk 0:02:51.9]} 11. Be3 {[%clk 0:02:59.4]}
11... Qa5 {[%clk 0:02:51.7]} 12. Qd2 {[%clk 0:02:57.8]} 12... cxd4 {[%clk
0:02:51.5]} 13. cxd4 {[%clk 0:02:57.5]} 13... Qxd2 {[%clk 0:02:52.4]} 14. Bxd2
{[%clk 0:02:51.7]} 14... Nxd4 {[%clk 0:02:52.4]} 15. Nxd4 {[%clk 0:02:51]} 15...
Bxd4 {[%clk 0:02:53.3]} 16. Rab1 {[%clk 0:02:51.3]} 16... Rd8 {[%clk 0:02:53.4]}
17. Bxb7 {[%clk 0:02:46.4]} 17... Bxb7 {[%clk 0:02:52.8]} 18. Rxb7 {[%clk
0:02:45]} 18... Bxf2+ {[%clk 0:02:51]} 19. Kxf2 {[%clk 0:02:45.5]} 19... Rxd2+
{[%clk 0:02:51.6]} 20. Re2 {[%clk 0:02:46.2]} 20... Rd6 {[%clk 0:02:49.2]} 21.
c4 {[%clk 0:02:44.7]} 21... h5 {[%clk 0:02:46.5]} 22. Reb2 {[%clk 0:02:43.3]}
22... g6 {[%clk 0:02:43]} 23. Rc7 {[%clk 0:02:43.8]} 23... Ra6 {[%clk
0:02:41.4]} 24. Rbb7 {[%clk 0:02:43.1]} 24... Rxa2+ {[%clk 0:02:40.9]} 25. Kg1
{[%clk 0:02:43.8]} 25... Rd8 {[%clk 0:02:39.4]} 26. Rd7 {[%clk 0:02:38.5]} 26...
Rxd7 {[%clk 0:02:38.6]} 27. Rxd7 {[%clk 0:02:39.4]} 27... Rc2 {[%clk 0:02:38.3]}
28. Rxa7 {[%clk 0:02:36.5]} 28... Rxc4 {[%clk 0:02:38.2]} 29. Kg2 {[%clk
0:02:37]} 29... Kg7 {[%clk 0:02:37.1]} 30. Kh3 {[%clk 0:02:37.2]} 30... g5
{[%clk 0:02:37.1]} 31. Rb7 {[%clk 0:02:37.9]} 31... Rc2 {[%clk 0:02:36.8]} 32.
g4 {[%clk 0:02:34.6]} 32... hxg4+ {[%clk 0:02:31.2]} 33. Kxg4 {[%clk 0:02:34]}
33... Kg6 {[%clk 0:02:31.8]} 34. h3 {[%clk 0:02:33.3]} 34... Rc3 {[%clk
0:02:31.4]} 35. Rxf7 {[%clk 0:02:28.6]} 35... Kxf7 {[%clk 0:02:31.1]} 0-1

[Event "Late-Titled-Tuesday-Blitz-October-17-2023"]
[Site "Chess.com"]
[Date "2023.10.17"]
[Round "8"]
[White "zajka-molotok"]
[Black "drdaro"]
[Result "1-0"]
[WhiteElo "2565"]
[BlackElo "2280"]
[TimeControl "180+1"]
[EndTime "15:20:34 PDT"]
[Termination "zajka-molotok won by resignation"]

1. e4 {[%clk 0:02:54.4]} 1... Nc6 {[%clk 0:02:59.3]} 2. d4 {[%clk 0:02:48.2]}
2... d6 {[%clk 0:03:00.2]} 3. f4 {[%clk 0:02:43.3]} 3... g6 {[%clk 0:02:59]} 4.
Nf3 {[%clk 0:02:42.4]} 4... Bg7 {[%clk 0:02:59.4]} 5. c3 {[%clk 0:02:41.1]} 5...
Bg4 {[%clk 0:02:59.5]} 6. h3 {[%clk 0:02:38.8]} 6... Bxf3 {[%clk 0:02:57.7]} 7.
Qxf3 {[%clk 0:02:39.7]} 7... Nf6 {[%clk 0:02:55.3]} 8. Bd3 {[%clk 0:02:35.2]}
8... O-O {[%clk 0:02:46.8]} 9. O-O {[%clk 0:02:34.5]} 9... a6 {[%clk 0:02:42]}
10. Be3 {[%clk 0:02:31]} 10... b5 {[%clk 0:02:40.1]} 11. e5 {[%clk 0:02:25.3]}
11... dxe5 {[%clk 0:02:09.5]} 12. Qxc6 {[%clk 0:02:22.6]} 12... exd4 {[%clk
0:02:09.7]} 13. Bxd4 {[%clk 0:02:19.7]} 13... Nd5 {[%clk 0:02:08.2]} 14. Bxg7
{[%clk 0:02:17.4]} 14... Kxg7 {[%clk 0:02:08.3]} 15. Be4 {[%clk 0:02:07.5]}
15... Nb6 {[%clk 0:02:06.9]} 16. Na3 {[%clk 0:02:03.7]} 1-0